bitfinex-derivatives/quotes_BNBF0:USTF0_20251225
["timestamp","ask_amount","ask_price","bid_price","bid_amount"]
[1766663980426,1.19461577,837.95,836.98,1.19046268]
[1766663980721,1.19461577,837.94,836.98,1.19046268]
[1766663980926,1.19461577,837.93,836.98,1.19046268]
[1766663981222,1.19461577,837.92,836.97,1.19046268]
[1766663981425,0.89507301,838.02,836.97,1.19046268]
[1766663981626,1.19461636,838.01,836.97,1.19046268]
[1766663981824,1.19461636,838.0,836.97,1.19046268]
[1766663982122,1.19461636,837.99,836.97,1.19046268]
[1766663982324,1.19461636,837.98,836.97,1.19046268]
[1766663982525,1.19461636,837.97,836.97,1.19046268]
[1766663982725,1.19461636,837.96,836.97,1.19046268]
[1766663983020,1.19461636,837.95,836.97,1.19046268]
[1766663983325,1.19461636,837.94,836.96,1.19046268]
[1766663983522,1.19461636,837.93,836.96,1.19046268]
[1766663983727,1.19461636,837.92,836.96,1.19046268]
[1766663983926,0.89507301,838.03,836.96,1.19046268]
[1766663984226,1.19461659,838.02,836.96,1.19046268]
[1766663984521,1.19461659,838.01,836.96,1.19046268]
[1766663984721,1.19461659,838.0,836.96,1.19046268]
[1766663984925,0.89507301,838.03,836.96,1.19046268]
[1766663984926,1.19461659,837.99,836.96,1.19046268]
[1766663985122,1.19461659,837.98,836.96,1.19046268]
[1766663985322,1.19461659,837.97,836.96,1.19046268]
[1766663985627,1.19461659,837.96,836.96,1.19046268]
[1766663985925,1.19461659,837.95,836.96,1.19046268]
[1766663986122,1.19461659,837.94,836.96,1.19046268]
[1766663986426,1.19461659,837.93,836.95,1.19046268]
[1766663986624,0.89507301,838.04,836.95,1.19046268]
[1766663986825,1.194616,838.03,836.95,1.19046268]
[1766663987027,1.194616,838.02,836.95,1.19046268]
[1766663987223,1.194616,838.01,836.95,1.19046268]
[1766663987423,1.194616,838.0,836.95,1.19046268]
[1766663987623,1.194616,837.99,836.95,1.19046268]
[1766663987827,1.194616,837.98,836.95,1.19046268]
[1766663988021,1.194616,837.97,836.95,1.19046268]
[1766663988222,1.194616,837.96,836.95,1.19046268]
[1766663988423,1.194616,837.95,836.95,1.19046268]
[1766663988625,1.194616,837.94,836.95,1.19046268]
[1766663988828,0.89507301,838.05,836.95,1.19046268]
[1766663989123,1.19461612,838.04,836.95,1.19046268]
[1766663989327,1.19461612,838.03,836.95,1.19046268]
[1766663989528,1.19461612,838.02,836.95,1.19046268]
[1766663989728,1.19461612,838.01,836.95,1.19046268]
[1766663989929,1.19461612,838.0,836.95,1.19046268]
[1766663990129,1.19461612,837.99,836.95,1.19046268]
[1766663990331,1.19461612,837.98,836.94,1.19046268]
[1766663990532,1.19461612,837.97,836.94,1.19046268]
[1766663990732,1.19461612,837.96,836.94,1.19046268]
[1766663990931,1.19461612,837.95,836.94,1.19046268]
[1766663991228,1.19461612,837.94,836.94,1.19046268]
[1766663991432,0.89507301,838.05,836.94,1.19046268]
[1766663991633,1.19461624,838.04,836.94,1.19046268]
[1766663991832,1.19461624,838.03,836.94,1.19046268]
[1766663992132,1.19461624,838.02,836.94,1.19046268]
[1766663992329,1.19461624,838.01,836.94,1.19046268]
[1766663992533,1.19461624,838.0,836.94,1.19046268]
[1766663992834,1.19461624,837.99,836.94,1.19046268]
[1766663993034,1.19461624,837.98,836.94,1.19046268]
[1766663993232,1.19461624,837.97,836.94,1.19046268]
[1766663993435,1.19461624,837.96,836.94,1.19046268]
[1766663993636,1.19461624,837.95,836.94,1.19046268]
[1766663993836,0.89507301,838.05,836.94,1.19046268]
[1766663994037,1.19461683,838.04,836.94,1.19046268]
[1766663994242,1.19461683,838.03,836.94,1.19046268]
[1766663994438,1.19461683,838.02,836.94,1.19046268]
[1766663994641,1.19461683,838.01,836.94,1.19046268]
[1766663994841,1.19461683,838.0,836.94,1.19046268]
[1766663995038,1.19461683,837.99,836.94,1.19046268]
[1766663995340,1.19461683,837.98,836.94,1.19046268]
[1766663995537,1.19461683,837.97,836.94,1.19046268]
[1766663995740,1.19461683,837.96,836.94,1.19046268]
[1766663996043,1.19461683,837.95,836.94,1.19046268]
[1766663996238,0.89507301,838.06,836.94,1.19046268]
[1766663996438,1.19461647,838.05,836.94,1.19046268]
[1766663996640,1.19461647,838.04,836.94,1.19046268]
[1766663996937,1.19461647,838.03,836.94,1.19046268]
[1766663997140,1.19461647,838.02,836.94,1.19046268]
[1766663997340,1.19461647,838.01,836.94,1.19046268]
[1766663997538,1.19461647,838.0,836.94,1.19046268]
[1766663997738,1.19461647,837.99,836.94,1.19046268]
[1766663997937,1.19461647,837.98,836.94,1.19046268]
[1766663998142,1.19461647,837.97,836.94,1.19046268]
[1766663998343,1.19461647,837.96,836.94,1.19046268]
[1766663998543,1.19461647,837.95,836.94,1.19046268]
[1766663998741,0.89507301,838.06,836.94,1.19046268]
[1766663999040,1.19461659,838.05,836.94,1.19046268]
[1766663999247,1.19461659,838.04,836.94,1.19046268]
[1766663999446,1.19461659,838.03,836.94,1.19046268]
[1766663999646,1.19461659,838.02,836.94,1.19046268]
[1766663999943,1.19461659,838.01,836.94,1.19046268]
[1766664000142,1.19461659,838.0,836.94,1.19046268]
[1766664000342,1.19461659,837.99,836.94,1.19046268]
[1766664000545,1.19461659,837.98,836.93,1.19046268]
[1766664000740,0.89507301,837.88,836.77,1.19046268]
[1766664000943,1.19461659,837.87,836.77,1.19046268]
[1766664001143,1.19461659,837.87,836.8,1.19046268]
[1766664001343,1.19461659,837.86,836.8,1.19046268]
[1766664001642,1.19461659,837.85,836.8,1.19046268]
[1766664001842,1.19461659,837.84,836.8,1.19046268]
[1766664002046,1.19461659,837.83,836.8,1.19046268]
[1766664002247,1.19461659,837.82,836.79,1.19046268]
[1766664002447,0.89507301,837.93,836.79,1.19046268]
[1766664002742,1.19481393,837.92,836.79,1.19046268]
[1766664002943,1.19481393,837.91,836.79,1.19046268]
[1766664003146,1.19481393,837.9,836.78,1.19046268]
[1766664003344,1.19481393,837.9,836.79,1.19046268]
[1766664003548,1.19481393,837.89,836.79,1.19046268]
[1766664003748,1.19481393,837.88,836.79,1.19046268]
[1766664003948,1.19481393,837.87,836.77,1.19046268]
[1766664004149,1.19481393,837.86,836.75,1.19046268]
[1766664004447,1.19481393,837.85,836.75,1.19046268]
[1766664004644,1.19481393,837.84,836.75,1.19046268]
[1766664004843,0.89507301,837.89,836.75,1.19046268]
[1766664005046,1.194871,837.88,836.75,1.19046268]
[1766664005246,1.194871,837.87,836.75,1.19046268]
[1766664005446,1.194871,837.86,836.75,1.19046268]
[1766664005646,1.194871,837.85,836.75,1.19046268]
[1766664005849,0.89507301,837.8,836.66,1.19046268]
[1766664006050,1.194871,837.79,836.66,1.19046268]
[1766664006248,1.194871,837.79,836.65,1.19046268]
[1766664006447,1.194871,837.78,836.65,1.19046268]
[1766664006649,1.194871,837.77,836.65,1.19046268]
[1766664006847,1.194871,837.76,836.65,1.19046268]
[1766664007052,1.194871,837.75,836.65,1.19046268]
[1766664007253,1.194871,837.74,836.62,1.19046268]
[1766664007449,1.194871,837.73,836.62,1.19046268]
[1766664007653,1.194871,837.72,836.62,1.19046268]
[1766664007847,1.194871,837.71,836.62,1.19046268]
[1766664008052,1.194871,837.7,836.62,1.19046268]
[1766664008252,0.89507301,837.8,836.62,1.19046268]
[1766664008451,1.19503255,837.79,836.62,1.19046268]
[1766664008647,1.19503255,837.78,836.62,1.19046268]
[1766664008852,1.19503255,837.77,836.62,1.19046268]
[1766664009053,1.19503255,837.76,836.62,1.19046268]
[1766664009248,1.19503255,837.75,836.61,1.19046268]
[1766664009452,1.19503255,837.74,836.61,1.19046268]
[1766664009752,1.19503255,837.73,836.61,1.19046268]
[1766664010052,1.19503255,837.72,836.61,1.19046268]
[1766664010252,1.19503255,837.71,836.61,1.19046268]
[1766664010452,1.19503255,837.7,836.61,1.19046268]
[1766664010653,1.19503255,837.69,836.61,1.19046268]
[1766664010848,0.89507301,837.8,836.61,1.19046268]
[1766664011152,1.195044,837.79,836.61,1.19046268]
[1766664011348,1.195044,837.78,836.61,1.19046268]
[1766664011649,1.195044,837.77,836.61,1.19046268]
[1766664011849,1.195044,837.76,836.61,1.19046268]
[1766664012049,1.195044,837.75,836.61,1.19046268]
[1766664012353,1.195044,837.74,836.61,1.19046268]
[1766664012551,1.195044,837.73,836.61,1.19046268]
[1766664012751,1.195044,837.72,836.61,1.19046268]
[1766664013052,1.195044,837.71,836.61,1.19046268]
[1766664013246,1.195044,837.7,836.61,1.19046268]
[1766664013452,1.195044,837.69,836.61,1.19046268]
[1766664013749,0.89507301,837.8,836.61,1.19046268]
[1766664013949,1.19504447,837.79,836.61,1.19046268]
[1766664014148,1.19504447,837.78,836.61,1.19046268]
[1766664014448,1.19504447,837.77,836.61,1.19046268]
[1766664014650,1.19504447,837.76,836.6,1.19046268]
[1766664014849,2.09011748,837.75,836.56,1.19046268]
[1766664015050,0.89507301,837.7,836.51,1.19046268]
[1766664015254,1.19504447,837.69,836.51,1.19046268]
[1766664016155,1.19504447,837.69,836.5,1.19046268]
[1766664016355,0.89507301,837.82,836.63,1.19046268]
[1766664016553,1.19501663,837.81,836.63,1.19046268]
[1766664016855,1.19501663,837.8,836.66,1.19046268]
[1766664017056,1.19501663,837.79,836.66,1.19046268]
[1766664017250,1.19501663,837.78,836.66,1.19046268]
[1766664017454,1.19501663,837.77,836.66,1.19046268]
[1766664017655,1.19501663,837.76,836.66,1.19046268]
[1766664017852,1.19501663,837.75,836.66,1.19046268]
[1766664018051,1.19501663,837.74,836.66,1.19046268]
[1766664018256,0.89507301,837.84,836.66,1.19046268]
[1766664018458,1.19497516,837.83,836.66,1.19046268]
[1766664018653,1.19497516,837.82,836.67,1.19046268]
[1766664018857,1.19497516,837.81,836.67,1.19046268]
[1766664019059,1.19497516,837.8,836.67,1.19046268]
[1766664019353,1.19497516,837.79,836.67,1.19046268]
[1766664019556,1.19497516,837.78,836.67,1.19046268]
[1766664019758,1.19497516,837.77,836.67,1.19046268]
[1766664019956,1.19497516,837.76,836.67,1.19046268]
[1766664020156,1.19497516,837.75,836.67,1.19046268]
[1766664020356,1.19497516,837.74,836.67,1.19046268]
[1766664020657,0.89507301,837.85,836.67,1.19046268]
[1766664020956,1.19496513,837.84,836.67,1.19046268]
[1766664021157,1.19496513,837.83,836.67,1.19046268]
[1766664021357,1.19496513,837.82,836.67,1.19046268]
[1766664021558,1.19496513,837.81,836.67,1.19046268]
[1766664021752,1.19496513,837.8,836.67,1.19046268]
[1766664021957,1.19496513,837.79,836.67,1.19046268]
[1766664022154,1.19496513,837.78,836.67,1.19046268]
[1766664022458,1.19496513,837.77,836.67,1.19046268]
[1766664022658,1.19496513,837.76,836.67,1.19046268]
[1766664022856,1.19496513,837.75,836.67,1.19046268]
[1766664023059,1.19496513,837.74,836.67,1.19046268]
[1766664023261,0.89507301,837.85,836.67,1.19046268]
[1766664023456,1.19496513,837.84,836.67,1.19046268]
[1766664023661,1.19496513,837.83,836.67,1.19046268]
[1766664023858,1.19496513,837.82,836.68,1.19046268]
[1766664024058,1.19496513,837.81,836.68,1.19046268]
[1766664024361,1.19496513,837.8,836.68,1.19046268]
[1766664024557,1.19496513,837.79,836.68,1.19046268]
[1766664024757,1.19496513,837.78,836.68,1.19046268]
[1766664025061,1.19496513,837.77,836.68,1.19046268]
[1766664025261,1.19496513,837.76,836.68,1.19046268]
[1766664025461,1.19496513,837.75,836.68,1.19046268]
[1766664025762,0.89507301,837.85,836.67,1.19046268]
[1766664025961,1.19495403,837.84,836.67,1.19046268]
[1766664026161,1.19495403,837.83,836.67,1.19046268]
[1766664026361,1.19306345,838.0,836.67,1.19046268]
[1766664026362,1.19495403,837.82,836.67,1.19046268]
[1766664026562,1.19495403,837.81,836.67,1.19046268]
[1766664026760,1.19495403,837.8,836.67,1.19046268]
[1766664026962,1.19495403,837.79,836.68,1.19046268]
[1766664027162,1.19495403,837.78,836.68,1.19046268]
[1766664027362,1.19495403,837.77,836.69,1.19046268]
[1766664027563,0.89507301,837.86,836.69,1.19046268]
[1766664027767,1.19492383,837.85,836.69,1.19046268]
[1766664027961,1.19492383,837.84,836.69,1.19046268]
[1766664028163,1.19492383,837.83,836.69,1.19046268]
[1766664028463,1.19492383,837.82,836.7,1.19046268]
[1766664028662,1.19492383,837.81,836.7,1.19046268]
[1766664028866,1.19492383,837.8,836.7,1.19046268]
[1766664029064,1.19492383,837.79,836.7,1.19046268]
[1766664029264,1.19492383,837.78,836.71,1.19046268]
[1766664029467,1.19492383,837.77,836.71,1.19046268]
[1766664029668,0.89507301,837.87,836.71,1.19046268]
[1766664029867,1.19491131,837.86,836.71,1.19046268]
[1766664030065,1.19491131,837.85,836.71,1.19046268]
[1766664030265,1.19491131,837.84,836.71,1.19046268]
[1766664030564,1.19491131,837.83,836.71,1.19046268]
[1766664030768,1.19491131,837.82,836.71,1.19046268]
[1766664030968,1.19491131,837.81,836.71,1.19046268]
[1766664031268,1.19491131,837.8,836.71,1.19046268]
[1766664031469,1.19491131,837.79,836.71,1.19046268]
[1766664031670,1.19491131,837.78,836.71,1.19046268]
[1766664031966,1.19491131,837.77,836.71,1.19046268]
[1766664032168,1.19491131,837.76,836.72,1.19046268]
[1766664032363,0.89507301,837.86,836.72,1.19046268]
[1766664032566,1.19491297,837.85,836.72,1.19046268]
[1766664032767,1.19491297,837.84,836.72,1.19046268]
[1766664032970,1.19491297,837.83,836.72,1.19046268]
[1766664033170,1.19491297,837.82,836.72,1.19046268]
[1766664033372,1.19491297,837.81,836.72,1.19046268]
[1766664033671,1.19491297,837.8,836.72,1.19046268]
[1766664033971,1.19491297,837.79,836.72,1.19046268]
[1766664034172,1.19491297,837.78,836.72,1.19046268]
[1766664034366,1.19491297,837.77,836.72,1.19046268]
[1766664034566,1.19491297,837.76,836.72,1.19046268]
[1766664034868,1.19491297,837.75,836.72,1.19046268]
[1766664035071,1.19491297,837.74,836.72,1.19046268]
[1766664035372,0.89507301,837.84,836.72,1.19046268]
[1766664035672,1.19492182,837.83,836.72,1.19046268]
[1766664035872,1.19492182,837.82,836.72,1.19046268]
[1766664036072,1.19492182,837.81,836.72,1.19046268]
[1766664036368,1.19492182,837.8,836.73,1.19046268]
[1766664036574,1.19492182,837.79,836.73,1.19046268]
[1766664036772,1.19492182,837.78,836.73,1.19046268]
[1766664036972,1.19492182,837.77,836.73,1.19046268]
[1766664037170,0.89507301,837.89,836.78,1.19046268]
[1766664037370,1.19482061,837.88,836.82,1.19046268]
[1766664037574,1.19482061,837.87,836.82,1.19046268]
[1766664037774,1.19482061,837.86,836.82,1.19046268]
[1766664037976,1.19482061,837.85,836.82,1.19046268]
[1766664038271,1.19482061,837.84,836.83,1.19046268]
[1766664038471,1.19482061,837.83,836.83,1.19046268]
[1766664038774,1.19482061,837.82,836.83,1.19046268]
[1766664038976,0.89507301,837.92,836.83,1.19046268]
[1766664039270,2.08986354,837.91,836.83,1.19046268]
[1766664039474,1.19479053,837.9,836.83,1.19046268]
[1766664039674,1.19479053,837.89,836.83,1.19046268]
[1766664039872,0.20768866,838.1,836.08,2.98109633]
[1766664039873,1.19479053,837.88,836.85,1.19046268]
[1766664040075,1.19479053,837.87,836.85,1.19046268]
[1766664040272,1.19479053,837.86,836.85,1.19046268]
[1766664040475,1.19479053,837.85,836.85,1.19046268]
[1766664040675,1.19479053,837.84,836.85,1.19046268]
[1766664040878,1.19479053,837.83,836.85,1.19046268]
[1766664041178,1.19479053,837.82,836.86,1.19046268]
[1766664041379,1.19479053,837.81,836.86,1.19046268]
[1766664041582,0.89507301,837.91,836.86,1.19046268]
[1766664041776,1.19477048,837.9,836.86,1.19046268]
[1766664041978,1.19477048,837.89,836.9,1.19046268]
[1766664042177,1.19477048,837.88,836.91,1.19046268]
[1766664042379,1.19477048,837.87,836.91,1.19046268]
[1766664042680,1.19477048,837.86,836.91,1.19046268]
[1766664042881,1.19477048,837.85,836.91,1.19046268]
[1766664043078,0.89507301,837.95,836.91,1.19046268]
[1766664043279,1.19470879,837.94,836.91,1.19046268]
[1766664043479,1.19470879,837.93,836.91,1.19046268]
[1766664043680,1.19470879,837.92,836.91,1.19046268]
[1766664043885,1.19470879,837.91,836.91,1.19046268]
[1766664044185,0.89507301,837.95,836.91,1.19046268]
[1766664044186,1.19470879,837.9,836.91,1.19046268]
[1766664044385,1.19470879,837.89,836.91,1.19046268]
[1766664044583,1.19470879,837.88,836.9,1.19046268]
[1766664044780,1.19470879,837.87,836.9,1.19046268]
[1766664044983,1.19470879,837.86,836.86,1.19046268]
[1766664045182,1.19470879,837.85,836.86,1.19046268]
[1766664045382,1.19470879,837.84,836.86,1.19046268]
[1766664045585,1.19470879,837.83,836.86,1.19046268]
[1766664045786,1.19470879,837.82,836.86,1.19046268]
[1766664046086,1.19470879,837.81,836.86,1.19046268]
[1766664046286,1.19470879,837.8,836.85,1.19046268]
[1766664046486,1.19470879,837.79,836.83,1.19046268]
[1766664046687,1.19470879,837.78,836.78,1.19046268]
[1766664046884,1.19470879,837.77,836.78,1.19046268]
[1766664047084,1.19470879,837.76,836.78,1.19046268]
[1766664047284,1.19470879,837.75,836.78,1.19046268]
[1766664047483,1.19470879,837.74,836.78,1.19046268]
[1766664047688,1.19470879,837.73,836.77,1.19046268]
[1766664047888,1.19470879,837.72,836.72,1.19046268]
[1766664048187,1.19470879,837.71,836.72,1.19046268]
[1766664048385,1.19470879,837.7,836.72,1.19046268]
[1766664048588,1.19470879,837.69,836.72,1.19046268]
[1766664048789,1.19470879,837.68,836.72,1.19046268]
[1766664049085,1.19470879,837.67,836.72,1.19046268]
[1766664049286,1.19470879,837.66,836.72,1.19046268]
[1766664049484,1.19470879,837.65,836.72,1.19046268]
[1766664049684,0.89507301,837.75,836.72,1.19046268]
[1766664049889,0.89507301,837.73,836.71,1.19046268]
[1766664050085,0.89507301,837.68,836.65,1.19046268]
[1766664050290,1.19498342,837.67,836.65,1.19046268]
[1766664054390,1.19498342,837.66,836.65,1.19046268]
[1766664054591,1.19498342,837.65,836.65,1.19046268]
[1766664054796,1.19498342,837.64,836.65,1.19046268]
[1766664054997,1.19498342,837.63,836.65,1.19046268]
[1766664055195,1.19498342,837.62,836.65,1.19046268]
[1766664055493,1.19498342,837.61,836.65,1.19046268]
[1766664055692,1.19498342,837.6,836.63,1.19046268]
[1766664055896,1.19498342,837.59,836.63,1.19046268]
[1766664056096,1.19498342,837.58,836.63,1.19046268]
[1766664056296,0.89507301,837.67,836.63,1.19046268]
[1766664056494,1.1951049,837.66,836.63,1.19046268]
[1766664056697,1.1951049,837.65,836.63,1.19046268]
[1766664056894,1.1951049,837.64,836.63,1.19046268]
[1766664057094,1.1951049,837.63,836.63,1.19046268]
[1766664057293,1.1951049,837.62,836.63,1.19046268]
[1766664057497,1.1951049,837.61,836.63,1.19046268]
[1766664057794,1.1951049,837.6,836.63,1.19046268]
[1766664058094,1.1951049,837.59,836.63,1.19046268]
[1766664058294,1.1951049,837.58,836.63,1.19046268]
[1766664058493,0.89507301,837.68,836.63,1.19046268]
[1766664058697,0.20782261,837.5,836.63,1.19046268]
[1766664062804,0.20782261,837.5,836.65,1.19046268]
[1766664065508,0.89507301,837.72,836.67,1.19046268]
[1766664065704,2.96193653,838.6,835.89,2.98109633]
[1766664065705,0.20779469,837.68,836.68,1.19046268]
[1766664065909,1.19502706,837.67,836.72,1.19046268]
[1766664066107,0.20779469,837.68,836.72,1.19046268]
[1766664066306,1.19497608,837.67,836.72,1.19046268]
[1766664066505,0.20779469,837.68,836.72,1.19046268]
[1766664066706,1.19497608,837.67,836.72,1.19046268]
[1766664066906,0.20779469,837.68,836.72,1.19046268]
[1766664067110,1.19497596,837.67,836.72,1.19046268]
[1766664067307,0.20779469,837.68,836.72,1.19046268]
[1766664067512,1.19497596,837.67,836.72,1.19046268]
[1766664067808,0.20779469,837.68,836.72,1.19046268]
[1766664068008,1.19497596,837.67,836.72,1.19046268]
[1766664068313,0.20779469,837.68,836.72,1.19046268]
[1766664068510,0.20779469,837.68,836.73,1.19046268]
[1766664068712,0.20779469,837.68,836.74,1.19046268]
[1766664072917,0.20779469,837.68,836.76,1.19046268]
[1766664083421,0.20779469,837.68,836.77,1.19046268]
[1766664085923,0.20779469,837.68,836.83,1.19046268]
[1766664086620,0.20779469,837.68,836.85,1.19046268]
[1766664087220,0.20779469,837.68,836.86,1.19046268]
[1766664089223,0.20779469,837.68,836.87,1.19046268]
[1766664089426,0.20779469,837.68,836.86,1.19046268]
[1766664090226,0.20779469,837.68,836.87,1.19046268]
[1766664091024,0.20779469,837.68,836.85,1.19046268]
[1766664092724,0.89354596,837.63,836.63,1.19046268]
[1766664093029,2.08870388,837.62,836.62,1.19046268]
[1766664093229,1.19515792,837.61,836.61,1.19046268]
[1766664094631,1.19515792,837.6,836.61,1.19046268]
[1766664094831,1.19515792,837.59,836.61,1.19046268]
[1766664095130,1.19515792,837.58,836.61,1.19046268]
[1766664095329,1.19515792,837.57,836.6,1.19046268]
[1766664095531,1.19515792,837.56,836.6,1.19046268]
[1766664095729,1.19515792,837.55,836.6,1.19046268]
[1766664095933,1.19515792,837.54,836.6,1.19046268]
[1766664096131,1.19515792,837.53,836.6,1.19046268]
[1766664096329,1.19515792,837.52,836.6,1.19046268]
[1766664096634,1.19515792,837.51,836.6,1.19046268]
[1766664096931,0.89354596,837.63,836.6,1.19046268]
[1766664097133,1.19518629,837.62,836.6,1.19046268]
[1766664097334,1.19518629,837.61,836.6,1.19046268]
[1766664097531,1.19518629,837.6,836.6,1.19046268]
[1766664097834,1.19518629,837.59,836.6,1.19046268]
[1766664098031,1.19518629,837.58,836.6,1.19046268]
[1766664098331,1.19518629,837.57,836.6,1.19046268]
[1766664098533,1.19518629,837.56,836.6,1.19046268]
[1766664098731,1.19518629,837.55,836.6,1.19046268]
[1766664098931,1.19518629,837.54,836.6,1.19046268]
[1766664099132,1.19518629,837.53,836.6,1.19046268]
[1766664099335,0.20779469,837.68,836.45,1.78569412]
[1766664099635,1.19517566,837.67,835.85,2.98109633]
[1766664099836,0.89365932,837.65,836.6,1.19098763]
[1766664100036,1.19517566,837.64,836.6,1.19098763]
[1766664100236,1.19517566,837.63,836.6,1.19098763]
[1766664100533,1.19517566,837.62,836.45,1.78648145]
[1766664100737,1.19517566,837.61,836.6,1.19097318]
[1766664100935,1.19517566,837.6,836.6,1.19097318]
[1766664101132,1.19517566,837.59,836.6,1.19097318]
[1766664101331,1.19517566,837.58,836.6,1.19097318]
[1766664101535,1.19517566,837.57,836.6,1.19097318]
[1766664101736,1.19517566,837.56,836.6,1.19097318]
[1766664102036,1.19517566,837.55,836.6,1.19097318]
[1766664102236,1.19517566,837.54,836.6,1.19097318]
[1766664102433,1.19517566,837.53,836.6,1.19097318]
[1766664102736,0.89364866,837.65,836.6,1.19097318]
[1766664103036,1.1951746,837.64,836.6,1.19097318]
[1766664103332,1.1951746,837.63,836.59,1.19097318]
[1766664103532,1.1951746,837.62,836.59,1.19097318]
[1766664103734,1.1951746,837.61,836.59,1.19097318]
[1766664103934,1.1951746,837.6,836.59,1.19097318]
[1766664104134,1.1951746,837.59,836.59,1.19097318]
[1766664104334,1.1951746,837.58,836.59,1.19097318]
[1766664104534,1.1951746,837.57,836.59,1.19097318]
[1766664104732,1.1951746,837.56,836.59,1.19097318]
[1766664104937,1.1951746,837.55,836.59,1.19097318]
[1766664105135,1.1951746,837.54,836.59,1.19097318]
[1766664105338,0.89364866,837.66,836.59,1.19097318]
[1766664105538,1.19517543,837.65,836.59,1.19097318]
[1766664105736,1.19517543,837.64,836.59,1.19097318]
[1766664105936,1.19517543,837.63,836.59,1.19097318]
[1766664106240,1.19517543,837.62,836.59,1.19097318]
[1766664106537,1.19517543,837.61,836.59,1.19097318]
[1766664106740,1.19517543,837.6,836.59,1.19097318]
[1766664106937,1.19517543,837.59,836.59,1.19097318]
[1766664107141,1.19517543,837.58,836.59,1.19097318]
[1766664107339,1.19517543,837.57,836.59,1.19097318]
[1766664107635,1.19517543,837.56,836.59,1.19097318]
[1766664107938,1.19517543,837.55,836.59,1.19097318]
[1766664108140,1.19517543,837.54,836.59,1.19097318]
[1766664108341,0.89364866,837.66,836.59,1.19097318]
[1766664108542,1.19517531,837.65,836.59,1.19097318]
[1766664108741,0.89364866,837.66,836.59,1.19097318]
[1766664108742,1.19517531,837.64,836.59,1.19097318]
[1766664108938,1.19517531,837.63,836.59,1.19097318]
[1766664109144,1.19517531,837.62,836.59,1.19097318]
[1766664109344,1.19517531,837.61,836.59,1.19097318]
[1766664109545,1.19517531,837.6,836.59,1.19097318]
[1766664109745,1.19517531,837.59,836.6,1.19097318]
[1766664109948,1.19517531,837.58,836.6,1.19097318]
[1766664110147,1.19517531,837.57,836.6,1.19097318]
[1766664110441,1.19517531,837.56,836.6,1.19097318]
[1766664110647,1.10144335,837.68,836.6,1.19097318]
[1766664110947,1.19514694,837.67,836.6,1.19097318]
[1766664111147,1.19514694,837.66,836.6,1.19097318]
[1766664111344,1.19514694,837.65,836.6,1.19097318]
[1766664111543,1.19514694,837.64,836.6,1.19097318]
[1766664111747,1.19514694,837.63,836.6,1.19097318]
[1766664111946,1.19514694,837.62,836.6,1.19097318]
[1766664112144,1.19514694,837.61,836.6,1.19097318]
[1766664112344,1.19514694,837.6,836.6,1.19097318]
[1766664112544,1.19514694,837.59,836.6,1.19097318]
[1766664112745,1.19514694,837.58,836.6,1.19097318]
[1766664112945,1.19514694,837.57,836.6,1.19097318]
[1766664113144,0.20779469,837.68,836.6,1.19097318]
[1766664113345,1.19514682,837.67,836.6,1.19097318]
[1766664113649,1.19514682,837.66,836.6,1.19097318]
[1766664113847,1.19514682,837.65,836.6,1.19097318]
[1766664114046,1.19514682,837.64,836.6,1.19097318]
[1766664114243,1.19514682,837.63,836.6,1.19097318]
[1766664114547,1.19514682,837.62,836.6,1.19097318]
[1766664114746,1.19514682,837.61,836.6,1.19097318]
[1766664114943,1.19514682,837.6,836.6,1.19097318]
[1766664115244,1.19514682,837.59,836.6,1.19097318]
[1766664115447,1.19514682,837.58,836.6,1.19097318]
[1766664115645,1.19514682,837.57,836.6,1.19097318]
[1766664115845,0.20779469,837.68,836.76,0.89259529]
[1766664116047,1.19514753,837.67,836.76,0.89259529]
[1766664116249,1.19514753,837.66,836.76,0.89259529]
[1766664116449,1.19514753,837.65,836.76,0.89259529]
[1766664116749,1.19514753,837.64,836.76,0.89259529]
[1766664117049,1.19514753,837.63,836.76,0.89259529]
[1766664117249,1.19514753,837.62,836.76,0.89259529]
[1766664117449,1.19514753,837.61,836.76,0.89259529]
[1766664117746,1.19514753,837.6,836.76,0.89259529]
[1766664117945,1.19514753,837.59,836.76,0.89259529]
[1766664118148,1.19514753,837.58,836.76,0.89259529]
[1766664118349,1.19514753,837.57,836.76,0.89259529]
[1766664118550,0.20779469,837.68,836.76,0.89259529]
[1766664118745,1.19514705,837.67,836.76,0.89259529]
[1766664118950,1.19514705,837.66,836.76,0.89259529]
[1766664119150,1.19514705,837.65,836.76,0.89259529]
[1766664119354,1.19514705,837.64,836.76,0.89259529]
[1766664119550,1.19514705,837.63,836.76,0.89259529]
[1766664119750,1.19514705,837.62,836.76,0.89259529]
[1766664119954,1.19514705,837.61,836.76,0.89259529]
[1766664120249,0.20779469,837.68,836.76,0.89259529]
[1766664120250,1.19514705,837.6,836.76,0.89259529]
[1766664120550,1.19514705,837.59,836.76,0.89259529]
[1766664120750,1.19514705,837.58,836.76,0.89259529]
[1766664121051,1.19514705,837.57,836.76,0.89259529]
[1766664121250,0.20779469,837.68,836.76,0.89259529]
[1766664121451,1.1951467,837.67,836.76,0.89259529]
[1766664121652,1.1951467,837.66,836.76,0.89259529]
[1766664121851,1.1951467,837.65,836.76,0.89259529]
[1766664122053,1.1951467,837.64,836.76,0.89259529]